Cogmind - Beta 16.1 @@@ ROGUE MODE // 2026.03.21 @ 18:09:30 Player: APerTAS Result: Destroyed by Triborg with Siege Cannon Performance ------------- Evolutions (3) 1500 Regions Visited (8) 1600 Robots Destroyed (0) 0 Value Destroyed (180) 180 Prototype IDs (6) 120 Alien Tech Used (0) 0 Bonus (856) 856 TOTAL SCORE: 4256 Bonus ------- Pacifist 834 Follower Combat Kills 70 Friendly Fire -48 Cogmind --------- Core Integrity 0/700 Matter 249/300 Energy 98/100 System Corruption 0% Temperature Cool (0) Movement Core (50) Location -7/Scraptown Parts ------- > --- POWER (1) -------- (None) > --- PROPULSION (2) --- (None) > --- UTILITY (2) ------ (None) > --- WEAPON (8) ------- (None) > --- INVENTORY (5) ---- (None) Peak State ------------ None Favorites ----------- Power None Propulsion None Utility None Weapon None Build | -11 -10 -10 -9 -8 -7 -7 -7 -7 ------- Run | Yrd Mat Min Mat Mat Fac Sto Rec Scr Slots Evolved 6 | . . . 2 2 2 . . . Power . | . . . . . . . . . Propulsion . | . . . . . . . . . Utility . | . . . . . . . . . Weapon 6 | . . . 2 2 2 . . . Parts Attached . | . . . . . . . . . Power . | . . . . . . . . . Engine . | . . . . . . . . . Core . | . . . . . . . . . Reactor . | . . . . . . . . . Propulsion . | . . . . . . . . . Treads . | . . . . . . . . . Leg . | . . . . . . . . . Wheel . | . . . . . . . . . Hover . | . . . . . . . . . Flight . | . . . . . . . . . Utility . | . . . . . . . . . Device . | . . . . . . . . . Storage . | . . . . . . . . . Processor . | . . . . . . . . . Hackware . | . . . . . . . . . Protection . | . . . . . . . . . Artifact . | . . . . . . . . . Weapon . | . . . . . . . . . Energy Gun . | . . . . . . . . . Energy Cannon . | . . . . . . . . . Ballistic Gun . | . . . . . . . . . Ballistic Cannon . | . . . . . . . . . Launcher . | . . . . . . . . . Special Weapon . | . . . . . . . . . Impact Weapon . | . . . . . . . . . Slashing Weapon . | . . . . . . . . . Piercing Weapon . | . . . . . . . . . Special Melee Weapon . | . . . . . . . . . Unidentified Prototypes . | . . . . . . . . . Parts Lost . | . . . . . . . . . Power . | . . . . . . . . . Propulsion . | . . . . . . . . . Utility . | . . . . . . . . . Weapon . | . . . . . . . . . Highest Loss Streak . | . . . . . . . . . To Critical Strikes . | . . . . . . . . . Average Backups . | . . . . . . . . . Power . | . . . . . . . . . Propulsion . | . . . . . . . . . Utility . | . . . . . . . . . Weapon . | . . . . . . . . . Tool/Special . | . . . . . . . . . Unused Backups . | . . . . . . . . . Power . | . . . . . . . . . Propulsion . | . . . . . . . . . Utility . | . . . . . . . . . Weapon . | . . . . . . . . . Tool/Special . | . . . . . . . . . Average Slot Usage (%) . | . . . . . . . . . Peak Build Rating . | . . . . . . . . . Average Rating . | . . . . . . . . . On Entrance . | . . . . . . . . . Avg Prop Armor Cover (%) . | . . . . . . . . . Naked Turns 354 | . 34 13 56 65 41 68 43 34 Heaviest Build . | . . . . . . . . . Greatest Support 3 | 3 3 3 3 3 3 3 3 3 Greatest Overweight (x) . | . . . . . . . . . Average Overweight (x) . | . . . . . . . . . Largest Inventory Capacity 5 | 5 5 5 5 5 5 5 5 5 Average Capacity 5 | 5 5 5 5 5 5 5 5 5 Most Carried . | . . . . . . . . . Average Carried . | . . . . . . . . . Final Capacity 5 | 5 5 5 5 5 5 5 5 5 Final Carried . | . . . . . . . . . Class Distribution -------------------- 94% | Mutant 5% | Commander-Mutant Dominant Class ---------------- Mutant | -10/Materials Mutant | -10/Mines Mutant | -9/Materials Mutant | -8/Materials Mutant | -7/Factory Mutant | -7/Storage Mutant | -7/Recycling Mutant | -7/Scraptown Resources | -11 -10 -10 -9 -8 -7 -7 -7 -7 ----------- Run | Yrd Mat Min Mat Mat Fac Sto Rec Scr Matter Collected 77 | 77 . . . . . . . . Remotely . | . . . . . . . . . Salvage Created . | . . . . . . . . . Parts . | . . . . . . . . . Haulers Intercepted . | . . . . . . . . . Recyclers Shooed . | . . . . . . . . . Parts Field Recycled . | . . . . . . . . . Retrieved Matter . | . . . . . . . . . Parts Self-Destructed . | . . . . . . . . . Prevented . | . . . . . . . . . Parts Restored . | . . . . . . . . . Kills | -11 -10 -10 -9 -8 -7 -7 -7 -7 ------- Run | Yrd Mat Min Mat Mat Fac Sto Rec Scr Combat Hostiles Destroyed . | . . . . . . . . . Classes Destroyed . | . . . . . . . . . Best Kill Streak . | . . . . . . . . . Combat Bots Only . | . . . . . . . . . Max Kills in Single Turn . | . . . . . . . . . Gunslinging . | . . . . . . . . . Exploded . | . . . . . . . . . Melee . | . . . . . . . . . Uniques/NPCs Destroyed . | . . . . . . . . . Combat | -11 -10 -10 -9 -8 -7 -7 -7 -7 -------- Run | Yrd Mat Min Mat Mat Fac Sto Rec Scr Hostile Shots Fired 160 | . 1 . 43 31 18 65 . 2 Missed 61 | . . . 16 15 8 22 . . Hits 99 | . 1 . 27 16 10 43 . 2 Projectile 99 | . 1 . 27 16 10 43 . 2 Critical Strikes 2 | . . . . 1 . 1 . . Damage Taken 1316 | . 7 . 308 266 85 516 . 134 Core 1316 | . 7 . 308 266 85 516 . 134 Absorbed by Shields . | . . . . . . . . . Core Remaining (%) 67 | 100 . 97 23 51 . . . . Volleys Fired . | . . . . . . . . . Largest . | . . . . . . . . . Hottest . | . . . . . . . . . Shots Fired . | . . . . . . . . . Gun . | . . . . . . . . . Cannon . | . . . . . . . . . Launcher . | . . . . . . . . . Special . | . . . . . . . . . Kinetic . | . . . . . . . . . Thermal . | . . . . . . . . . Explosive . | . . . . . . . . . Electromagnetic . | . . . . . . . . . Robot Hit Streak . | . . . . . . . . . Robot Miss Streak . | . . . . . . . . . Penetration Max . | . . . . . . . . . Secondary Targets . | . . . . . . . . . Shots Hit Robots . | . . . . . . . . . Core Hits 4 | . . . . 2 . 2 . . Critical Kills . | . . . . . . . . . Critical Parts Destroyed . | . . . . . . . . . Critical Strikes . | . . . . . . . . . Melee Attacks . | . . . . . . . . . Impact . | . . . . . . . . . Slashing . | . . . . . . . . . Piercing . | . . . . . . . . . Sneak Attacks . | . . . . . . . . . Combat Hostiles . | . . . . . . . . . Follow-up Attacks . | . . . . . . . . . Damage Inflicted 106 | . . . 10 42 12 26 . 16 Guns . | . . . . . . . . . Cannons . | . . . . . . . . . Explosions . | . . . . . . . . . Melee . | . . . . . . . . . Ramming 106 | . . . 10 42 12 26 . 16 Kinetic . | . . . . . . . . . Thermal . | . . . . . . . . . Explosive . | . . . . . . . . . Electromagnetic . | . . . . . . . . . Impact . | . . . . . . . . . Slashing . | . . . . . . . . . Piercing . | . . . . . . . . . Highest Corruption 2 | . . . . . . 2 2 2 Average Corruption 2 | . . . . . . 2 2 2 Corruption Purged . | . . . . . . . . . Corruption Blocked . | . . . . . . . . . Effects 3 | . . . . . . 1 2 . Message Errors 1 | . . . . . . . 1 . Heat Flow Errors 1 | . . . . . . 1 . . Energy Discharges 1 | . . . . . . . 1 . Overload Shots . | . . . . . . . . . Overflow Damage . | . . . . . . . . . Projectiles . | . . . . . . . . . Explosions . | . . . . . . . . . Melee . | . . . . . . . . . Knockbacks 1 | . . . . . . 1 . . Impact 1 | . . . . . . 1 . . Kinetic . | . . . . . . . . . Secondary . | . . . . . . . . . Self-Inflicted Damage 49 | . . . 5 19 6 11 . 8 Shots . | . . . . . . . . . Rammed 19 | . . . 2 8 1 7 . 1 Targets Rammed 19 | . . . 2 8 1 7 . 1 Kicked . | . . . . . . . . . Crushed . | . . . . . . . . . Highest Temperature 75 | . . . . . . 75 . . Average Temperature 33 | . . . . . . 33 . . Received Heat Transfer 630 | . . . 162 162 24 270 . 12 Siege Activations . | . . . . . . . . . Martial Activations . | . . . . . . . . . Shielding Activations . | . . . . . . . . . Robots Disrupted . | . . . . . . . . . Combat Hostiles . | . . . . . . . . . Robots Corrupted . | . . . . . . . . . Combat Hostiles . | . . . . . . . . . Parts Fried . | . . . . . . . . . Impact Corruptions . | . . . . . . . . . Robots Melted . | . . . . . . . . . Combat Hostiles . | . . . . . . . . . Parts Melted . | . . . . . . . . . Heat Transferred . | . . . . . . . . . Parts Sabotaged . | . . . . . . . . . Parts Stolen . | . . . . . . . . . Parts Stripped . | . . . . . . . . . Power Chain Reactions . | . . . . . . . . . Alert | -11 -10 -10 -9 -8 -7 -7 -7 -7 ------- Run | Yrd Mat Min Mat Mat Fac Sto Rec Scr Maximum Alert Level . | . . . . . . . . . Low Security (%) 100 | 100 100 100 100 100 100 100 100 . Level 1 . | . . . . . . . . . Level 2 . | . . . . . . . . . Level 3 . | . . . . . . . . . Level 4 . | . . . . . . . . . Level 5 . | . . . . . . . . . High Security . | . . . . . . . . . Max Security . | . . . . . . . . . Peak Influence 136 | . 45 13 79 73 23 136 15 . Initial 33 | . . 13 4 33 23 1 4 . Average 37 | . 22 13 48 55 17 60 4 . Influence Increases 411 | . 45 . 95 50 . 210 11 . Destroy 0b10 Robot/C 80 | . . . . . . 80 . . Destroy Leader 10 | . . . . . . 10 . . Allied During Kill 35 | . . . . . . 35 . . Successful Hack 16 | . . . . . . 5 11 . Select Force Hacks 180 | . . . 80 50 . 50 . . Partial Spotted 30 | . . . 15 . . 15 . . Lose Combat Pursuer 60 | . 45 . . . . 15 . . Influence Decreases 411 | . 10 22 29 76 50 202 22 . Entered New Map 116 | . . 22 9 46 30 2 7 . Time Decay 125 | . 10 . 20 30 20 30 15 . Lost Ally 170 | . . . . . . 170 . . Squads Dispatched 13 | . 2 . 4 2 . 5 . . Investigation 9 | . 2 . 3 2 . 2 . . Extermination . | . . . . . . . . . Reinforcement 4 | . . . 1 . . 3 . . Assault . | . . . . . . . . . Garrison . | . . . . . . . . . Intercept . | . . . . . . . . . Searches Triggered . | . . . . . . . . . Construction Impeded . | . . . . . . . . . Haulers Reinforced 1 | . . . . . . 1 . . Active Scanning Responses . | . . . . . . . . . Cargo Convoy Interrupts . | . . . . . . . . . Stealth | -11 -10 -10 -9 -8 -7 -7 -7 -7 --------- Run | Yrd Mat Min Mat Mat Fac Sto Rec Scr Distress Signals 2 | . . . 1 . . 1 . . Communications Jammed . | . . . . . . . . . Distress Signals . | . . . . . . . . . Times Spotted 48 | . 2 . 12 11 1 18 . 4 Peak Tracking Total 16 | . 3 . 14 11 1 16 . 5 Tactical Retreats 2 | . 1 . . . . 1 . . Traps | -11 -10 -10 -9 -8 -7 -7 -7 -7 ------- Run | Yrd Mat Min Mat Mat Fac Sto Rec Scr Traps Triggered . | . . . . . . . . . Indirectly . | . . . . . . . . . Trap Hack Attempts . | . . . . . . . . . Triggered . | . . . . . . . . . Disarmed . | . . . . . . . . . Reprogrammed . | . . . . . . . . . Reused . | . . . . . . . . . Traps Extracted . | . . . . . . . . . Installed . | . . . . . . . . . Triggered . | . . . . . . . . . Machines | -11 -10 -10 -9 -8 -7 -7 -7 -7 ---------- Run | Yrd Mat Min Mat Mat Fac Sto Rec Scr Machines Disabled . | . . . . . . . . . Max in Single Turn . | . . . . . . . . . Machines Repaired . | . . . . . . . . . Machines Dismantled . | . . . . . . . . . Machines Sabotaged 3 | . . . 1 1 . 1 . . Overloaded Fab Kills . | . . . . . . . . . Hacking | -11 -10 -10 -9 -8 -7 -7 -7 -7 --------- Run | Yrd Mat Min Mat Mat Fac Sto Rec Scr Machines Accessed 11 | . 2 . 3 2 . 2 2 . Terminals 10 | . 2 . 2 2 . 2 2 . Fabricators . | . . . . . . . . . Repair Stations . | . . . . . . . . . Recycling Units . | . . . . . . . . . Scanalyzers 1 | . . . 1 . . . . . Garrison Access . | . . . . . . . . . Total Hacks 24 | . 2 . 5 2 . 5 10 . Successful 13 | . 2 . 3 2 . 3 3 . Failed 11 | . . . 2 . . 2 7 . Catastrophic 1 | . . . . . . . 1 . Database Lockouts . | . . . . . . . . . Manual 21 | . 3 . 5 2 . 6 5 . Terminals 22 | . 2 . 3 2 . 5 10 . Fabricators . | . . . . . . . . . Repair Stations . | . . . . . . . . . Recycling Units . | . . . . . . . . . Scanalyzers 2 | . . . 2 . . . . . Garrison Access . | . . . . . . . . . Terminal Hacks 3 | . . . . . . . 3 . Prototype ID Bank 3 | . . . . . . . 3 . Fabricator Hacks . | . . . . . . . . . Repair Station Hacks . | . . . . . . . . . Recycling Unit Hacks . | . . . . . . . . . Scanalyzer . | . . . . . . . . . Garrison Access Hacks . | . . . . . . . . . Unauthorized Hacks 10 | . 2 . 3 2 . 3 . . Terminals 9 | . 2 . 2 2 . 3 . . Assimilate 2 | . . . . . . 2 . . Sabotage 7 | . 2 . 2 2 . 1 . . Fabricators . | . . . . . . . . . Repair Stations . | . . . . . . . . . Recycling Units . | . . . . . . . . . Scanalyzers 1 | . . . 1 . . . . . Extract 1 | . . . 1 . . . . . Garrison Access . | . . . . . . . . . Data Cores Recovered . | . . . . . . . . . Used . | . . . . . . . . . Hacking Detections 6 | . 1 . 1 . . 2 2 . Full Trace Events 3 | . . . . . . 1 2 . Feedback Events . | . . . . . . . . . Feedback Blocked . | . . . . . . . . . Robot Schematics Acquired . | . . . . . . . . . Robots Built . | . . . . . . . . . Authchips . | . . . . . . . . . Time . | . . . . . . . . . Total Robot Build Rating . | . . . . . . . . . Part Schematics Acquired 6 | . . . 6 . . . . . Parts Built . | . . . . . . . . . Authchips . | . . . . . . . . . Time . | . . . . . . . . . Total Part Build Rating . | . . . . . . . . . Part Studies Acquired . | . . . . . . . . . Parts Repaired . | . . . . . . . . . Time . | . . . . . . . . . Parts Recycled . | . . . . . . . . . Recycled Matter . | . . . . . . . . . Retrieved Matter . | . . . . . . . . . Retrieved Components . | . . . . . . . . . Parts Scanalyzed . | . . . . . . . . . Part Schematics Acquired . | . . . . . . . . . Parts Damaged . | . . . . . . . . . Bothacking | -11 -10 -10 -9 -8 -7 -7 -7 -7 ------------ Run | Yrd Mat Min Mat Mat Fac Sto Rec Scr Used RIF Installer . | . . . . . . . . . Robots Hacked . | . . . . . . . . . Non-combat . | . . . . . . . . . Combat . | . . . . . . . . . Robot Hacks Applied . | . . . . . . . . . Relay Couplers Released . | . . . . . . . . . Fabnet Peak Effective % . | . . . . . . . . . Robots Rewired 2 | . . . . . . 2 . . Allies Hacked . | . . . . . . . . . Hacks Repelled . | . . . . . . . . . Allies | -11 -10 -10 -9 -8 -7 -7 -7 -7 -------- Run | Yrd Mat Min Mat Mat Fac Sto Rec Scr Total Allies 11 | . . . . . . 11 . . Largest Group 11 | . . . . . . 11 . . Highest-Rated Group 183 | . . . . . . 183 . . Highest-Rated Ally 29 | . . . . . . 29 . . Total Orders . | . . . . . . . . . Ally Attacks 36 | . . . . . . 36 . . Total Damage 437 | . . . . . . 437 . . Kills 4 | . . . . . . 4 . . Allies Corrupted . | . . . . . . . . . Allies Melted . | . . . . . . . . . Intel | -11 -10 -10 -9 -8 -7 -7 -7 -7 ------- Run | Yrd Mat Min Mat Mat Fac Sto Rec Scr Active Infowar (turns) . | . . . . . . . . . Robot Analysis Total . | . . . . . . . . . Derelict Logs Recovered . | . . . . . . . . . Drone Launches . | . . . . . . . . . Drone Recoveries . | . . . . . . . . . Exploration | -11 -10 -10 -9 -8 -7 -7 -7 -7 ------------- Run | Yrd Mat Min Mat Mat Fac Sto Rec Scr Turns Passed 364 | 10 34 13 56 65 41 68 43 34 Spaces Moved 674 | 19 68 26 108 114 79 109 85 66 Core 674 | 19 68 26 108 114 79 109 85 66 Treads . | . . . . . . . . . Legs . | . . . . . . . . . Wheels . | . . . . . . . . . Hover . | . . . . . . . . . Flight . | . . . . . . . . . Fastest Speed 50 | 50 50 50 50 50 50 50 50 50 Average Speed 50 | 50 50 50 50 50 50 50 50 50 Slowest Speed 50 | 50 50 50 50 50 50 50 50 50 Overloaded Moves . | . . . . . . . . . Propulsion Burnouts . | . . . . . . . . . Robots Hopped . | . . . . . . . . . Potential Cave-ins . | . . . . . . . . . Cave-ins Triggered . | . . . . . . . . . Exploration Rate (%) 15 | 2 26 13 12 19 4 32 17 12 Regions Visited 8 Branch Regions 4 Pre-discovered Areas . | . . . . . . . . . Known Exits Taken . | . . . . . . . . . Unknown Exits Taken 8 | 1 1 1 1 1 1 1 1 . Scrap Searched . | . . . . . . . . . Spaces Dug . | . . . . . . . . . Terrain Destroyed . | . . . . . . . . . Melee . | . . . . . . . . . Projectile . | . . . . . . . . . AOE . | . . . . . . . . . Terrain Rammed . | . . . . . . . . . Walls Destroyed . | . . . . . . . . . Machines Disabled . | . . . . . . . . . Actions | -11 -10 -10 -9 -8 -7 -7 -7 -7 --------- Run | Yrd Mat Min Mat Mat Fac Sto Rec Scr Total 691 | 18 67 25 109 121 79 121 84 67 Wait 2 | . . . . . . 2 . . Move 666 | 18 67 25 107 113 78 108 84 66 Hop . | . . . . . . . . . Pick Up . | . . . . . . . . . Fast Attach . | . . . . . . . . . Attach . | . . . . . . . . . Detach . | . . . . . . . . . Swap . | . . . . . . . . . Drop . | . . . . . . . . . Fire . | . . . . . . . . . Melee . | . . . . . . . . . Ram 19 | . . . 2 8 1 7 . 1 Kick . | . . . . . . . . . Crush . | . . . . . . . . . Escape Stasis . | . . . . . . . . . Rewire 4 | . . . . . . 4 . . Trap . | . . . . . . . . . Miscellaneous . | . . . . . . . . . Route ------- -11/Scrapyard -10/Materials -10/Mines -9/Materials -8/Materials -7/Factory -7/Storage -7/Recycling -7/Scraptown History --------- Turn | Location | Event 4 | -11/Scrapyard | Discovered new exit (range 14) 11 | -11/Scrapyard | Entered Materials 34 | -10/Materials | Discovered new exit (range 13) 45 | -10/Materials | Entered Mines 53 | -10/Mines | Discovered new exit (range 8) 58 | -10/Mines | Entered Materials 58 | -9/Materials | Evolved 2 slots: Weapon x2 105 | -9/Materials | Discovered new exit (range 15) 110 | -9/Materials | Core integrity fell below 50% 114 | -9/Materials | Entered another Materials area 114 | -8/Materials | Evolved 2 slots: Weapon x2 178 | -8/Materials | Discovered new exit (range 4) 179 | -8/Materials | Entered Factory 179 | -7/Factory | Evolved 2 slots: Weapon x2 216 | -7/Factory | Discovered new exit (range 9) 220 | -7/Factory | Entered Storage 259 | -7/Storage | Assisted by bots powering up and referring to "LRC-V3" 263 | -7/Storage | Core integrity fell below 50% 271 | -7/Storage | Core integrity fell below 20% 285 | -7/Storage | Used back door to open Recycling access 285 | -7/Storage | Discovered new exit (range 4) 288 | -7/Storage | Entered Recycling 305 | -7/Recycling | Lost 4 allies 319 | -7/Recycling | Scanned before Scraplab entrance 326 | -7/Recycling | Entered Scraplab 330 | -7/Recycling | Discovered new exit (range 2) 331 | -7/Recycling | Entered Scraptown 333 | -7/Scraptown | System corruption cleaned by C-Scrubber 364 | -7/Scraptown | Attacked by Scraptown defenders 365 | -7/Scraptown | Destroyed by Triborg with Siege Cannon Last Messages --------------- 00326_ WA-EFI(c): "A little light reading never hurt anyone, but if you dare try to take our prototype, you'll regret it." 00329_ System corrupted: Energy discharge (-30). 00330_ EXIT=FOUND LOCATION=UNKNOWN GOAL=ESCAPE 00331_ LOCAL NARROWCAST: Welcome to Scraptown. Please remember it is vital to either disarm yourself or ensure you are corruption-free before entering the area. Use the C-Scrubber! You bear full responsibility for any potential consequences of non-compliance. Enjoy your stay. LOCAL NARROWCAST: Corruption nullified, you may proceed. 00335_ ANNOUNCEMENT: Unclassified nonregistered visitor in outer Scraptown, temporarily sealing HQ gate. 00351_ ANNOUNCEMENT: To all visitors: Defacing our home will be considered a hostile act, tread lightly and respect boundaries. 00362_ Triborg examines you suspiciously. 00363_ Slammed into Triborg. 00364_ ANNOUNCEMENT: Intruder alert! Defend Scraptown! 00365_ Triborg activates siege mode. 00365_ Penetrated by Siege Slug. Map ----- +----------------------------------------------------+ | ?????????????????????????????????????????????????? | | ?????????????????????????????????????????????????? | | ?????????????????????????????????????????????????? | | ?????????????????????????????????????????????????? | | ?????????????????????????????????????????????????? | | ?????????????????????????????????????????????????? | | ?????????????????????????????????????????????????? | | ?????????????????????????????????????????????????? | | ?????????????????????????????????????????????????? | | ?????????????????????????????????????????????????? | | ??????????????????????? ??????????????????????? | | ????????????????????? ??????????????????????? | | ?????????????????? g ??????????????????????? | | ???????????????? # #?????????????????????? | | ???????????????? # #?????????????????????? | | ????????????????? j #?????????????????????? | | ?????????????????# #?????????????????????? | | ?????????????????# ##????????????????????? | | ?????????????????# ""????????????????????? | | ?????????????????# j"?????????????????????? | | ????????????????# "?????????????????????? | | #???????????????# #?????????????????????? | | #???????????????# #####?????????????????? | | #???????????????# % "?????????????????? | | #???????????????# "?????????????????? | | #???????????????# @ "?????????????????? | | #???????????????# "?????????????????? | | ################# jTT "?????????????????? | | TT "?????????????????? | | "?????????????????? | | "?????????????????? | | "?????????????????? | | h "?????????????????? | | #"?????????????????? | | #??????????????????? | | #??????????????????? | | ##### ####### ########## ####??????????????????? | | ??? #????#" ???????# #?????????????????????? | | ??""" ????#" ??????# #?????????????????????? | | ? "" #???#" ?????# #?????????????????????? | | " #???#" """ ???# #?????????????????????? | | " ????#" """ "??# #?????????????????????? | | " #???#" """ "#?# #?????????????????????? | | " #????" "#?? #?????????????????????? | | "? #????" ???"??? #?????????????????????? | | """""? #????"""""??????? #?????????????????????? | | ??????##?????####??????? #?????????????????????? | | ????????????????????????? ???????????????????????? | | ?????????????????????????????????????????????????? | | ?????????????????????????????????????????????????? | +----------------------------------------------------+ Best States ------------- Heat Dissipation 34 Energy Generation 5 Energy Capacity 100 Matter Stores 245 Matter Capacity 300 Sight Range 16 Terrain Scan Density 10 Evasion (%) 50 Item Schematics ----------------- Shotgun | -9/Materials | Extracted Sml. Storage Unit | -9/Materials | Extracted EM Pulse Gun | -9/Materials | Extracted Lrg. Storage Unit | -9/Materials | Extracted Terrain Scan Processor | -9/Materials | Extracted Wheel | -9/Materials | Extracted Robot Schematics ------------------ None Fabricated ------------ Nothing Repaired ---------- Nothing Studied --------- None Alien Tech Used ----------------- None Achievements -------------- None Challenges ------------ None Game ------ Seed TargetingMetaPlatform Manual? 0 Play Time 00:06:24 Cumulative 31.1 hours Start 2026.03.21 @ 18:03:00 End 2026.03.21 @ 18:09:30 Sessions 1 Manual Loads 0 Difficulty Rogue Special Mode None Game No. 141 Rogue 141 Adventurer 0 Explorer 0 Win Type - Total 0 Types 0/0/0/0/0/0/0/0/0/0 Lore% 35 Gallery% 28 Achievement% 36 Wizard Run 0 Options --------- Layout 0 ASCII 0 Keyboard 0 Movement Arrows Keybinds 0 Fullscreen 2 Font 18/Terminus Map View 76x50 Zoom Use 0% Tactical HUD 1 Map Filters NONE Filters NONE Steam 1 RUN: b8b37ed8-30a1-439b-b24b-5d9b96cac197